bitfinex/quotes_ETHUSD_20251116
["timestamp","ask_amount","ask_price","bid_price","bid_amount"]
[1763327259013,0.05,3077.3,3074.7,1.86618218]
[1763327259014,0.05,3076.6,3075.0,0.0008]
[1763327259240,0.05,3076.6,3074.8,1.67321175]
[1763327259241,0.4685,3076.5,3074.8,1.67321175]
[1763327259440,0.43164921,3077.2,3074.8,2.16211175]
[1763327259721,0.05,3077.0,3074.9,1.90329425]
[1763327259905,0.4685,3077.1,3075.1,0.405504]
[1763327260105,0.4685,3077.0,3075.2,0.0008]
[1763327260507,0.5104373,3076.6,3075.4,0.405504]
[1763327261223,0.4685,3076.5,3075.5,0.0008]
[1763327261542,0.5104373,3076.6,3075.5,0.0008]
[1763327261713,0.5104373,3076.6,3075.3,0.405504]
[1763327261913,0.4685,3077.9,3075.7,0.405504]
[1763327262113,0.51034914,3077.1,3075.7,0.405504]
[1763327262415,0.51034914,3077.1,3075.8,0.0008]
[1763327262612,0.4685,3077.0,3075.4,0.0008]
[1763327263124,0.05,3076.7,3075.4,0.0008]
[1763327263303,0.05,3076.7,3075.1,0.0008]
[1763327263504,0.4685,3076.7,3075.1,1.62542373]
[1763327264035,0.4685,3076.7,3075.3,1.67736196]
[1763327264235,0.4685,3076.7,3075.4,0.0008]
[1763327264437,0.05,3076.6,3075.4,0.0008]
[1763327264622,0.4685,3076.5,3075.5,0.0008]
[1763327264825,0.4685,3076.5,3075.0,0.0008]
[1763327265031,0.4685,3076.5,3075.1,1.62462373]
[1763327265227,0.51034914,3077.1,3075.2,0.405504]
[1763327265548,0.05,3078.6,3075.4,0.405504]
[1763327265752,0.51025114,3077.7,3075.6,0.405504]
[1763327265911,0.4685,3078.3,3075.7,0.0008]
[1763327266107,0.4685,3078.2,3075.8,0.405504]
[1763327266645,0.4685,3078.2,3076.0,0.405504]
[1763327267144,0.4685,3078.2,3076.2,0.405504]
[1763327267526,0.4685,3078.2,3076.4,0.405504]
[1763327267728,0.05,3078.9,3076.4,0.405504]
[1763327267729,0.4685,3078.9,3076.4,0.405504]
[1763327267930,0.05,3079.6,3076.6,0.405504]
[1763327268229,0.4685,3079.6,3076.6,0.405504]
[1763327268431,0.4685,3079.6,3076.8,0.405504]
[1763327268846,0.51007685,3079.0,3076.9,0.4889]
[1763327269226,0.4685,3078.9,3077.0,0.405504]
[1763327269813,0.4685,3078.9,3077.2,0.405504]
[1763327270251,0.4685,3078.9,3077.4,0.405504]
[1763327270609,0.4685,3078.9,3077.4,0.894404]
[1763327271032,0.51007685,3079.0,3077.6,0.405504]
[1763327271914,0.4613,3078.9,3077.4,0.405504]
[1763327272333,0.4613,3078.9,3077.3,0.1965]
[1763327273057,0.51007685,3079.0,3077.5,0.405504]
[1763327273418,0.51007685,3079.0,3077.7,0.405504]
[1763327273614,0.51007685,3079.0,3077.9,0.405504]
[1763327273813,0.51007685,3079.0,3078.1,0.405504]
[1763327274265,0.002,3079.6,3078.3,0.405504]
[1763327274563,0.51001923,3079.4,3078.2,0.1899]
[1763327274848,0.4633,3079.6,3078.2,0.1899]
[1763327275258,0.4633,3079.6,3076.6,0.4658]
[1763327275259,0.05,3078.3,3076.6,0.4658]
[1763327275465,0.05,3078.3,3075.7,1.6894913]
[1763327275466,0.05,3078.3,3075.9,0.6623]
[1763327275628,0.4613,3078.2,3076.4,0.4658]
[1763327275863,0.68160775,3078.8,3076.4,0.4658]
[1763327276063,0.75745327,3078.7,3076.5,0.405504]
[1763327276262,0.29615327,3078.6,3076.4,0.4658]
[1763327276468,0.4613,3078.5,3076.4,0.4658]
[1763327276664,0.4613,3078.8,3076.5,0.405504]
[1763327276865,0.29639624,3078.7,3076.5,0.405504]
[1763327277065,0.29639624,3078.7,3076.7,0.405504]
[1763327277265,0.4613,3078.6,3076.7,0.405504]
[1763327277469,0.4613,3078.6,3076.9,0.405504]
[1763327277859,0.4613,3078.6,3077.1,0.405504]
[1763327278060,0.05,3079.1,3077.1,0.405504]
[1763327278287,0.4613,3079.0,3077.2,0.4658]
[1763327279466,0.4613,3079.0,3077.3,0.405504]
[1763327279666,0.4613,3079.0,3077.5,0.405504]
[1763327280077,0.4613,3079.0,3077.0,0.1899]
[1763327280078,0.4613,3079.0,3077.7,0.405504]
[1763327280590,0.002,3079.6,3077.9,0.405504]
[1763327280759,0.29866457,3079.6,3078.1,0.405504]
[1763327281300,0.29870485,3079.6,3078.3,0.405504]
[1763327281603,0.002,3079.6,3078.3,0.405504]
[1763327281788,0.002,3079.6,3078.5,0.405504]
[1763327281961,0.002,3079.6,3078.4,0.4658]
[1763327281962,0.002,3079.6,3079.5,0.595404]
[1763327282301,0.4613,3081.8,3079.6,0.405504]
[1763327282460,1.32821303,3082.3,3079.6,0.4658]
[1763327282461,0.4613,3081.3,3079.6,0.4658]
[1763327282659,0.05,3080.4,3078.6,0.1899]
[1763327282890,0.05,3080.4,3078.3,0.405504]
[1763327283066,0.4613,3080.3,3078.3,0.871304]
[1763327283258,0.1902,3080.8,3078.5,0.405504]
[1763327283490,0.51004265,3080.9,3078.5,0.405504]
[1763327283724,0.51004265,3080.9,3078.7,0.405504]
[1763327284225,0.51004265,3080.9,3078.9,0.405504]
[1763327284385,1.19631303,3082.6,3078.9,0.405504]
[1763327284386,0.4613,3081.8,3078.9,0.405504]
[1763327284581,0.50965824,3081.1,3079.1,0.405504]
[1763327284785,0.4613,3081.8,3079.3,0.405504]
[1763327284985,0.75768112,3081.7,3079.3,0.405504]
[1763327285221,0.29638112,3081.6,3079.5,0.405504]
[1763327285419,0.75768112,3081.6,3079.5,0.405504]
[1763327285604,0.75768112,3081.5,3078.7,0.405504]
[1763327285812,0.29638112,3081.4,3079.7,0.405504]
[1763327285997,0.75768112,3081.4,3079.7,0.405504]
[1763327286326,0.29638112,3081.3,3079.7,0.405504]
[1763327286622,0.75768112,3081.3,3079.2,0.405504]
[1763327286822,0.29638112,3081.2,3079.2,0.405504]
[1763327287032,0.75768112,3081.2,3079.3,0.405504]
[1763327287331,0.29638112,3081.1,3079.3,0.405504]
[1763327287496,0.29638112,3081.1,3079.4,0.405504]
[1763327287702,0.4613,3082.2,3079.4,0.405504]
[1763327287900,0.4613,3082.2,3079.6,0.405504]
[1763327287901,0.50972644,3081.5,3079.6,0.405504]
[1763327288299,0.50972644,3081.5,3079.8,0.405504]
[1763327288826,1.02102644,3081.5,3079.1,0.4658]
[1763327289010,0.05,3081.1,3079.1,0.4658]
[1763327289196,0.05,3081.1,3078.6,0.1899]
[1763327289541,0.4613,3081.0,3078.8,0.405504]
[1763327289850,0.29550208,3080.9,3078.8,0.405504]
[1763327290049,0.29550208,3080.9,3078.7,0.4658]
[1763327290050,0.05,3080.7,3078.2,0.1899]
[1763327290186,0.48570208,3080.9,3078.2,0.1899]
[1763327290187,0.05,3080.2,3078.2,0.1899]
[1763327290388,0.4613,3080.8,3076.3,0.001]
[1763327290389,0.05,3079.8,3077.8,0.1899]
[1763327290924,0.4613,3079.7,3079.3,0.001]
[1763327291604,0.4613,3080.2,3079.3,0.001]
[1763327291939,0.29598736,3080.1,3079.3,0.001]
[1763327292088,0.2960805,3080.7,3079.3,0.001]
[1763327292289,0.7573805,3080.7,3079.3,0.001]
[1763327292490,0.4613,3080.7,3079.3,0.001]
[1763327293192,0.29622823,3080.6,3079.3,0.001]
[1763327293520,0.29622823,3080.6,3079.4,0.405504]
[1763327293740,0.1902,3080.9,3079.4,0.405504]
[1763327293905,0.4633,3081.2,3079.6,0.405504]
[1763327293906,0.29620479,3081.1,3079.6,0.405504]
[1763327294289,0.29620479,3081.1,3079.8,0.405504]
[1763327294494,0.29620479,3081.1,3079.8,0.871304]
[1763327295500,0.4613,3081.0,3079.3,0.001]
[1763327295793,0.29620479,3080.9,3079.3,0.001]
[1763327296190,0.5148,3080.8,3079.3,0.001]
[1763327296539,0.29620479,3080.7,3079.3,0.001]
[1763327296720,0.05,3080.3,3079.3,0.001]
[1763327297090,0.4648,3080.2,3079.3,0.001]
[1763327297296,0.29620479,3080.1,3079.3,0.001]
[1763327297734,0.4648,3080.0,3079.3,0.001]
[1763327298017,0.29620479,3079.9,3079.3,0.001]
[1763327298805,0.4648,3079.9,3079.3,0.001]
[1763327299007,0.29620479,3079.8,3079.3,0.001]
[1763327299206,0.4648,3080.7,3079.3,0.4893]
[1763327300629,0.4648,3080.7,3079.3,0.001]
[1763327301791,1.83063394,3080.9,3079.5,0.405504]
[1763327302028,0.22954339,3080.7,3079.6,0.4562]
[1763327302230,0.1922,3081.2,3079.6,0.4562]
[1763327302433,0.6549,3081.2,3079.3,0.001]
[1763327302605,0.05,3080.2,3079.3,0.001]
[1763327303022,0.4627,3080.1,3079.3,0.001]
[1763327303326,0.05,3079.8,3079.3,0.001]
[1763327303532,0.22063701,3079.8,3079.3,0.001]
[1763327303726,0.4627,3079.7,3079.3,0.001]
[1763327304128,0.22063701,3079.8,3079.3,0.001]
[1763327304318,0.4627,3079.7,3079.3,0.001]
[1763327307772,0.68482397,3079.9,3079.3,0.001]
[1763327307971,0.68482397,3080.1,3079.3,0.001]
[1763327308126,0.4627,3079.8,3079.3,0.001]
[1763327309223,0.68482397,3079.9,3079.3,0.001]
[1763327309420,0.4627,3079.9,3079.3,0.001]
[1763327309644,0.5127,3079.8,3079.3,0.001]
[1763327309820,1.65901303,3079.8,3079.3,0.001]
[1763327310059,1.98446607,3079.7,3079.3,0.001]
[1763327310247,0.73482397,3079.6,3079.3,0.001]
[1763327310447,0.68482397,3079.6,3079.3,0.001]
[1763327310652,0.6286013,3079.7,3079.3,0.001]
[1763327310653,0.4627,3079.5,3079.3,0.001]
[1763327310827,0.1881137,3080.0,3079.3,0.001]
[1763327311029,1.65637058,3080.8,3079.4,0.4562]
[1763327311222,1.19887575,3080.7,3079.3,0.001]
[1763327311427,0.4627,3080.6,3079.3,0.001]
[1763327311635,0.05,3080.7,3079.3,0.001]
[1763327311838,0.51005755,3080.8,3079.5,0.405504]
[1763327312047,0.51005755,3080.8,3079.4,0.4562]
[1763327317537,0.51005755,3080.8,3079.3,0.001]
[1763327317538,0.05,3080.7,3079.3,0.001]
[1763327317868,1.14631303,3080.6,3079.3,0.001]
[1763327318032,0.4627,3080.6,3079.3,0.001]
[1763327318236,0.50993773,3080.4,3079.3,0.001]
[1763327318437,1.1962094,3080.4,3079.3,0.001]
[1763327318641,0.68627167,3080.4,3079.3,0.001]
[1763327318833,1.14897167,3080.4,3079.3,0.001]
[1763327319775,1.14897167,3080.4,3077.5,1.64073666]
[1763327319776,0.1863,3079.4,3075.8,1.61026965]
[1763327319976,0.1863,3079.4,3075.6,0.4562]
[1763327319977,0.05,3076.5,3075.6,0.4562]
[1763327320180,0.05,3076.5,3074.9,5.70829816]
[1763327320181,0.1598,3075.8,3073.5,1.62225247]
[1763327320334,0.68648961,3075.7,3074.5,0.0008]
[1763327320674,0.85568942,3075.5,3072.2,1.60415762]
[1763327320875,0.85568942,3076.2,3075.6,0.1857]
[1763327321079,0.85568942,3077.3,3075.6,0.1857]
[1763327321303,0.68489817,3077.2,3075.6,0.1857]
[1763327321459,0.68489817,3077.4,3075.6,0.1857]
[1763327321646,0.68489817,3077.6,3075.6,0.1857]
[1763327321851,1.19518275,3077.5,3075.6,0.1857]
[1763327322048,0.51028458,3077.5,3077.1,0.1857]
[1763327322277,1.71946955,3078.5,3077.4,0.1857]
[1763327322278,0.85568942,3078.5,3077.4,0.1857]
[1763327322451,0.51020233,3078.0,3077.4,0.1857]
[1763327322649,0.51020233,3078.0,3077.5,0.4562]
[1763327322854,0.68453016,3077.9,3077.1,0.1857]
[1763327323062,0.88957235,3077.8,3077.2,0.4562]
[1763327323280,0.20504219,3077.8,3077.2,0.4562]
[1763327324347,0.20504219,3077.8,3077.1,0.1857]
[1763327325404,0.51020233,3078.0,3077.1,0.6419]
[1763327325405,1.19473249,3078.0,3077.1,0.6419]
[1763327325566,0.85568942,3079.0,3077.2,0.4562]
[1763327325763,1.14631303,3079.2,3077.2,0.4562]
[1763327325764,0.85568942,3079.2,3077.2,0.4562]
[1763327326012,1.54022062,3079.3,3077.2,0.4562]
[1763327326294,0.6845312,3079.2,3077.2,0.4562]
[1763327326495,0.85568942,3079.4,3077.2,0.4562]
[1763327326695,1.54022062,3079.4,3077.2,0.4562]
[1763327326997,0.85568942,3079.4,3077.2,0.4562]
[1763327327969,1.54022062,3079.5,3077.2,0.4562]
[1763327328165,0.85568942,3079.5,3077.2,0.4562]
[1763327328468,1.54022062,3079.5,3077.2,0.4562]
[1763327328671,0.85568942,3079.5,3077.2,0.4562]
[1763327328874,0.50999632,3079.0,3077.2,0.4562]
[1763327329403,1.54022062,3079.5,3077.2,0.4562]
[1763327329611,0.6845312,3079.4,3077.2,0.4562]
[1763327329799,0.85568942,3080.7,3079.8,0.405504]
[1763327329956,0.68733405,3080.8,3079.8,0.405504]
[1763327330158,0.68733405,3080.8,3079.7,0.1857]
[1763327330159,0.002,3080.8,3080.0,0.405504]
[1763327330596,0.002,3080.8,3079.3,0.4562]
[1763327330763,0.002,3080.8,3079.4,0.405504]
[1763327331173,0.002,3080.8,3080.7,0.591204]
[1763327331556,0.002,3080.8,3080.7,0.1857]
[1763327331962,0.002,3080.8,3080.3,0.599004]
[1763327332264,0.002,3080.8,3080.3,0.1935]
[1763327332581,0.002,3080.8,3079.9,0.4624]
[1763327334808,0.002,3080.8,3080.0,0.405504]
[1763327334988,0.002,3080.8,3080.7,0.1935]
[1763327335186,0.002,3080.8,3080.2,0.405504]
[1763327335499,0.002,3080.8,3080.1,0.4624]
[1763327335700,0.002,3080.8,3080.2,0.405504]
[1763327336118,0.002,3080.8,3080.3,0.405504]
[1763327336587,0.002,3080.8,3080.4,0.405504]
[1763327337488,0.002,3080.8,3080.5,0.1935]
[1763327337683,0.002,3080.8,3080.6,0.405504]
[1763327338099,0.002,3080.8,3080.7,0.867904]
[1763327339132,0.002,3080.8,3080.1,0.1052]
[1763327339290,0.4809,3080.7,3079.6,0.1935]
[1763327339491,0.4809,3080.7,3078.5,0.4624]
[1763327340393,0.4809,3080.7,3078.6,0.405504]
[1763327340589,0.4809,3080.7,3078.5,0.4624]
[1763327341093,0.4809,3080.7,3078.6,0.405504]
[1763327341397,0.002,3080.8,3080.7,0.405504]
[1763327341831,0.002,3080.8,3080.7,0.867904]
[1763327344023,0.002,3080.8,3080.4,0.405504]
[1763327344252,0.002,3081.2,3080.3,0.1935]
[1763327344253,0.002,3081.2,3080.6,0.405504]
[1763327344760,0.002,3081.2,3080.8,0.405504]
[1763327345158,0.002,3081.2,3081.0,0.405504]
[1763327345469,0.002,3081.2,3080.4,0.867904]
[1763327345618,0.002,3081.2,3080.6,0.405504]
[1763327345818,0.002,3081.2,3080.7,0.405504]
[1763327346262,0.002,3081.2,3080.9,0.405504]
[1763327346623,0.002,3081.2,3081.1,0.405504]
[1763327347056,0.002,3081.2,3081.1,0.867904]
[1763327348227,0.002,3080.8,3080.5,0.4624]
[1763327348760,0.002,3080.8,3079.8,0.1935]
[1763327349258,0.002,3080.8,3079.9,0.405504]
[1763327349468,0.002,3080.8,3079.8,0.1935]
[1763327350159,0.002,3080.8,3079.8,0.6559]
[1763327350765,0.002,3080.8,3079.9,0.405504]
[1763327351190,0.002,3080.8,3079.9,0.867904]
[1763327351567,0.002,3080.8,3080.1,0.405504]
[1763327352466,0.002,3080.8,3079.9,0.405504]
[1763327352664,0.002,3080.8,3080.2,0.405504]
[1763327353063,0.4809,3080.7,3079.5,0.1935]
[1763327353464,0.002,3080.8,3079.7,0.405504]
[1763327353878,0.002,3080.8,3079.9,0.405504]
[1763327354078,0.002,3080.8,3080.1,0.405504]
[1763327355323,2.017727,3080.7,3079.2,0.6559]
[1763327355504,0.85568942,3080.3,3079.2,0.1935]
[1763327355681,0.68113758,3080.2,3079.3,0.4527]
[1763327355884,0.68432741,3080.4,3079.4,0.405504]
[1763327356082,0.68432741,3080.6,3079.4,0.405504]
[1763327356316,0.002,3080.8,3079.6,0.405504]
[1763327356480,0.002,3080.8,3079.8,0.405504]
[1763327356921,0.002,3080.8,3080.0,0.405504]
[1763327357509,0.002,3080.8,3080.0,0.858204]
[1763327357921,0.002,3080.8,3080.2,0.405504]
[1763327358408,0.002,3081.2,3080.4,6.15392613]
[1763327358721,0.002,3081.2,3080.6,0.405504]
[1763327359024,0.002,3081.2,3081.0,5.74842213]
[1763327359197,0.002,3081.6,3081.1,1.5392448]
[1763327359397,0.85768942,3083.4,3081.8,1.5392448]
[1763327359584,0.002,3083.4,3082.8,0.405504]
[1763327359789,0.002,3083.4,3081.6,0.4527]
[1763327360030,0.85568942,3083.2,3082.4,0.405504]
[1763327360190,0.68788829,3083.1,3082.4,0.405504]
[1763327360390,0.002,3083.4,3082.6,0.405504]
[1763327360688,0.68704771,3083.3,3082.6,0.405504]
[1763327360890,0.002,3083.4,3082.6,0.405504]
[1763327361234,0.68734615,3083.3,3082.6,0.405504]
[1763327361528,0.002,3083.4,3082.6,0.405504]
[1763327361726,0.002,3083.4,3082.7,0.405504]
[1763327362023,0.002,3083.4,3082.9,0.405504]
[1763327362486,0.002,3083.4,3083.1,0.405504]
[1763327362914,0.002,3083.4,3082.4,0.903804]
[1763327363521,0.002,3083.4,3082.6,0.405504]
[1763327363894,0.002,3083.4,3082.6,0.4983]
[1763327364148,0.002,3083.4,3082.9,5.74842213]
[1763327364436,0.002,3083.4,3083.0,0.98034621]
[1763327364726,0.002,3083.4,3083.2,0.405504]
[1763327365093,0.002,3083.4,3083.3,0.903804]
[1763327367332,0.002,3083.8,3083.3,0.903804]
[1763327367535,0.002,3083.8,3083.7,0.587104]
[1763327368023,0.002,3083.8,3083.7,1.085404]
[1763327370292,0.002,3083.8,3083.3,0.4983]
[1763327370993,0.002,3083.8,3083.4,0.405504]
[1763327371192,0.002,3083.8,3083.4,0.60925848]
[1763327371430,0.002,3083.8,3083.6,0.405504]
[1763327371803,0.002,3083.8,3083.4,0.20375448]
[1763327371804,0.002,3083.8,3083.7,0.405504]
[1763327372003,0.002,3083.8,3082.9,0.4983]
[1763327372327,0.002,3083.8,3083.0,0.6912]
[1763327373136,0.002,3083.8,3083.1,0.405504]
[1763327374431,0.002,3083.8,3083.2,0.4983]
[1763327374957,0.002,3083.8,3083.6,6.41106963]
[1763327375095,0.002,3083.8,3083.0,0.1929]
[1763327375292,0.4997,3083.8,3082.5,6.41106963]
[1763327375496,0.4997,3083.8,3082.6,1.77484776]
[1763327375759,0.4997,3083.8,3082.3,0.1132]
[1763327376624,0.4997,3083.8,3082.3,0.0632]
[1763327377658,0.4997,3083.8,3082.4,0.4983]
[1763327378013,0.002,3083.8,3082.5,6.41106963]
[1763327378205,0.002,3083.8,3082.6,2.72848176]
[1763327378621,0.4977,3083.7,3082.4,0.1929]
[1763327379045,0.4977,3083.7,3082.4,0.6912]
[1763327379544,0.002,3083.8,3083.6,0.0632]
[1763327380044,0.002,3083.8,3083.7,0.4983]
[1763327381351,0.002,3084.1,3083.8,0.405504]
[1763327381547,0.002,3084.1,3084.0,0.405504]
[1763327382055,0.6809334,3085.9,3084.0,0.903804]
[1763327382214,0.6809334,3086.1,3084.0,0.903804]
[1763327382415,0.1969,3086.2,3084.1,0.4983]
[1763327382636,0.4977,3086.1,3084.1,0.4983]
[1763327384741,0.50888668,3085.7,3084.2,0.405504]
[1763327385053,0.4977,3085.6,3084.2,0.405504]
[1763327386033,0.4977,3085.6,3083.9,0.24430488]
[1763327386034,0.002,3084.5,3084.4,0.405504]
[1763327390034,0.002,3084.5,3084.2,0.1929]
[1763327390234,0.002,3084.5,3084.3,0.903804]
[1763327390633,0.002,3084.5,3084.4,0.903804]
[1763327394936,0.002,3084.5,3084.4,1.378704]
[1763327396373,0.002,3084.5,3081.8,0.09999999]
[1763327396571,0.002,3084.5,3080.1,7.69677569]
[1763327396572,0.50712376,3081.2,3080.1,7.69677569]
[1763327396773,0.60712375,3081.2,3080.1,0.6668]
[1763327396974,0.6851599,3081.1,3080.1,0.6668]
[1763327397277,0.68524508,3081.0,3080.1,0.1946]
[1763327397569,0.50712376,3081.2,3080.5,0.4722]
[1763327398767,0.50712376,3081.2,3079.7,0.1946]
[1763327398768,0.09999999,3081.0,3079.7,0.1946]
[1763327399087,0.78355723,3081.0,3079.7,0.1946]
[1763327399369,0.09999999,3081.0,3079.7,0.1946]
[1763327399543,0.57349999,3081.0,3079.7,0.1946]
[1763327400464,1.25460451,3081.0,3079.7,0.1946]
[1763327400650,0.57349999,3081.0,3079.7,0.1946]
[1763327400850,0.4735,3081.0,3079.7,0.1946]
[1763327401304,0.4735,3081.0,3078.1,0.4722]
[1763327401305,0.09999999,3080.4,3078.1,0.4722]
[1763327401490,0.09999999,3080.4,3077.1,1.60769543]
[1763327401491,0.09999999,3078.1,3077.2,0.1946]
[1763327401793,0.09999999,3078.5,3077.3,0.4722]
[1763327402289,0.09999999,3078.2,3077.3,0.4722]
[1763327402485,0.85093264,3079.7,3077.3,0.4722]
[1763327402486,0.09999999,3079.1,3077.3,0.4722]
[1763327402687,0.4735,3079.5,3078.2,0.405504]
[1763327402893,0.09999999,3079.6,3078.2,0.405504]
[1763327403054,0.09999999,3079.6,3078.1,0.1946]
[1763327403385,0.09999999,3080.0,3078.2,0.4722]
[1763327403553,0.09999999,3079.8,3078.3,0.405504]
[1763327403756,0.4735,3080.7,3078.3,0.405504]
[1763327403988,0.4735,3080.7,3078.5,0.405504]
[1763327403989,0.09999999,3080.4,3078.5,0.405504]
[1763327404304,0.09999999,3080.3,3078.5,0.405504]
[1763327404468,0.09999999,3080.1,3078.7,0.405504]
[1763327404671,0.09999999,3080.1,3078.6,0.4722]
[1763327404672,0.09999999,3079.6,3078.2,0.4722]
[1763327404868,0.09999999,3079.6,3078.3,0.405504]
[1763327405275,0.09999999,3079.3,3078.4,0.405504]
[1763327405492,0.09999999,3079.1,3078.1,0.1946]
[1763327405699,0.09999999,3079.1,3078.2,0.4722]
[1763327406200,0.4735,3080.0,3078.3,0.405504]
[1763327406382,0.09999999,3080.0,3078.3,0.405504]
[1763327406582,0.09999999,3080.0,3078.4,0.42131]
[1763327407503,10.0,3080.2,3078.4,0.42131]
[1763327407504,0.09999999,3079.8,3078.4,0.42131]
[1763327408032,0.09999999,3079.2,3078.4,0.42131]
[1763327409300,0.09999999,3080.4,3079.2,0.405504]
[1763327409700,0.1532,3082.0,3080.3,0.1946]
[1763327409701,0.09999999,3081.0,3080.3,0.1946]
[1763327410101,0.26859999,3081.0,3080.0,0.1946]
[1763327411240,0.09999999,3080.4,3079.7,0.1946]
[1763327411551,0.09999999,3080.4,3079.1,0.1946]
[1763327411702,0.09999999,3080.1,3079.1,0.1946]
[1763327412150,0.09999999,3079.6,3079.1,0.1946]
[1763327412599,0.09999999,3080.0,3079.1,0.14388762]
[1763327412799,0.09999999,3080.0,3079.2,0.4722]
[1763327413044,0.09999999,3080.3,3079.2,0.4722]
[1763327413444,0.1686,3081.0,3078.6,0.405504]
[1763327413445,0.09999999,3079.7,3078.6,0.405504]
[1763327413872,0.09999999,3079.7,3078.8,0.405504]
[1763327413999,0.09999999,3079.5,3078.7,0.4722]
[1763327414205,0.09999999,3079.3,3078.2,0.4722]
[1763327414916,0.09999999,3079.3,3078.3,0.405504]
[1763327415151,0.09999999,3079.3,3078.3,0.877704]
[1763327416637,0.09999999,3079.3,3078.3,0.831903]
[1763327417526,0.09999999,3078.9,3078.3,0.4722]
[1763327418107,10.0,3079.2,3078.3,0.4722]
[1763327418434,0.09999999,3079.7,3078.3,0.4722]
[1763327418638,0.09999999,3079.7,3079.1,0.1858]
[1763327418806,0.09999999,3079.7,3079.1,0.1358]
[1763327419710,0.09999999,3079.7,3078.8,0.4642]
[1763327420158,0.09999999,3079.7,3078.2,0.405504]
[1763327420325,10.0,3079.2,3078.4,0.405504]
[1763327420727,10.0,3079.2,3078.3,0.4642]
[1763327420728,10.09999999,3079.2,3078.3,0.4642]
[1763327420935,10.09999999,3079.2,3077.0,0.001]
[1763327420936,0.09999999,3078.9,3077.0,0.001]
[1763327421227,10.0,3079.2,3079.1,0.1858]
[1763327421552,10.0,3079.2,3078.5,0.405504]
[1763327422666,10.0,3079.2,3078.5,0.35986286]
[1763327423153,10.0,3079.2,3079.1,0.1827]
[1763327423448,10.0,3079.2,3078.5,0.4925]
[1763327424071,10.0,3079.2,3079.1,0.1827]
[1763327424559,0.002,3079.8,3079.2,0.405504]
[1763327424723,0.002,3079.8,3079.4,0.405504]
[1763327424921,0.002,3080.2,3079.4,0.405504]
[1763327425651,0.002,3080.2,3079.6,1.1270358]
[1763327425816,0.002,3080.2,3079.8,0.405504]
[1763327426456,0.002,3080.2,3079.2,0.405504]
[1763327427571,0.002,3080.2,3079.2,1.5392448]
[1763327427769,0.002,3080.2,3079.1,0.1827]
[1763327428097,0.002,3080.2,3079.2,0.405504]
[1763327428265,0.002,3080.2,3079.1,0.1827]
[1763327428793,0.002,3080.2,3079.2,0.405504]
[1763327428996,0.002,3080.2,3079.2,1.695504]
[1763327429154,0.002,3080.2,3079.4,0.405504]
[1763327429356,10.002,3080.2,3079.4,0.405504]
[1763327430667,0.002,3080.2,3079.4,0.405504]
[1763327431494,0.002,3080.2,3079.3,0.1878204]
[1763327431495,0.56009999,3080.1,3079.3,0.1878204]
[1763327431881,0.09999999,3080.1,3079.4,0.405504]
[1763327432060,0.002,3080.2,3079.4,0.405504]
[1763327432255,0.09999999,3079.9,3079.2,1.29]
[1763327432464,0.09999999,3079.9,3079.2,1.24892298]
[1763327432791,0.1904,3079.8,3079.2,1.24892298]
[1763327433394,0.1904,3079.8,3079.2,1.20892298]
[1763327433600,0.10199999,3080.2,3079.3,0.405504]
[1763327433800,0.68204411,3080.1,3079.3,0.405504]
[1763327433992,0.09999999,3079.9,3079.3,0.405504]
[1763327434907,0.09999999,3079.7,3079.2,1.20892298]
[1763327435065,0.75049999,3079.9,3079.2,1.20892298]
[1763327435266,0.09999999,3079.6,3079.2,1.20892298]
[1763327435464,0.56009999,3079.6,3079.2,1.20892298]
[1763327436196,0.09999999,3080.0,3079.2,1.20892298]
[1763327436376,0.87248601,3079.9,3079.3,0.405504]
[1763327436575,0.09999999,3080.0,3079.3,0.405504]
[1763327436576,0.68208601,3079.8,3079.3,0.405504]
[1763327436772,0.002,3080.2,3079.3,0.405504]
[1763327436992,0.7824073,3080.1,3079.3,0.405504]
[1763327437178,0.09999999,3080.1,3079.3,0.405504]
[1763327437718,0.4601,3080.0,3079.3,0.405504]
[1763327438203,0.4601,3080.0,3079.2,1.20892298]
[1763327438204,0.09999999,3079.5,3079.2,1.20892298]
[1763327438581,0.56009999,3079.5,3079.2,1.20892298]
[1763327438921,0.09999999,3079.3,3079.2,1.20892298]
[1763327439475,0.56009999,3079.3,3079.2,1.20892298]
[1763327440336,0.68263725,3079.7,3079.2,1.20892298]
[1763327440484,0.29039999,3079.9,3079.2,1.20892298]
[1763327440790,0.97883546,3079.8,3079.2,1.20892298]
[1763327440997,0.09999999,3079.5,3079.2,1.20892298]
[1763327442223,0.29039999,3079.9,3079.2,1.20892298]
[1763327442421,0.09999999,3079.5,3079.2,1.20892298]
[1763327442621,0.09999999,3079.5,3079.2,1.17195366]
[1763327443331,0.09999999,3079.9,3079.2,1.17195366]
[1763327443619,0.002,3080.0,3079.3,0.405504]
[1763327443620,10.0,3079.4,3079.3,0.405504]
[1763327443822,10.0,3079.4,3079.3,1.37852752]
[1763327444289,10.0,3079.4,3079.3,2.51226832]
[1763327444490,0.002,3080.0,3079.3,1.37852752]
[1763327444788,0.002,3080.0,3079.7,1.5392448]
[1763327448319,0.002,3080.2,3080.1,8.58728158]
[1763327448485,0.002,3080.5,3080.2,1.5392448]
[1763327449462,0.6833765,3082.4,3080.2,1.5392448]
[1763327449463,0.1904,3082.3,3081.2,1.5392448]
[1763327449664,0.29039999,3083.1,3082.1,1.5392448]
[1763327449825,0.09999999,3082.6,3082.2,0.85872816]
[1763327450017,0.09999999,3082.6,3081.6,1.1337408]